bitfinex/quotes_ETHUSD_20251108
["timestamp","ask_amount","ask_price","bid_price","bid_amount"]
[1762578609487,4.03154998,3461.2,3461.1,0.46840001]
[1762578609655,3.29467538,3461.2,3461.1,1.12840001]
[1762578609854,3.29467538,3461.2,3461.1,0.46840001]
[1762578609855,0.405504,3461.2,3461.1,0.46840001]
[1762578610188,3.29467538,3461.2,3461.1,0.46840001]
[1762578610977,3.74787538,3461.2,3461.1,1e-08]
[1762578611170,4.82534386,3461.2,3461.1,1e-08]
[1762578611980,5.27865615,3461.2,3461.1,1e-08]
[1762578612195,4.81955615,3461.2,3461.1,1e-08]
[1762578612514,4.81955615,3461.2,3460.1,0.005]
[1762578612515,3.29551035,3460.2,3460.1,0.005]
[1762578613091,3.29551035,3460.2,3460.1,0.4734]
[1762578613588,3.74871035,3460.2,3460.1,0.005]
[1762578613792,3.74871035,3460.2,3458.1,0.005]
[1762578613793,3.29634581,3459.2,3458.1,0.005]
[1762578613977,4.29525428,3459.2,3458.1,0.005]
[1762578614179,0.405504,3459.2,3459.1,0.4734]
[1762578614486,0.405504,3459.7,3459.1,1.048]
[1762578614686,3.29634581,3459.2,3459.1,0.1073]
[1762578615188,3.74954581,3459.2,3459.1,0.005]
[1762578616348,3.29634581,3459.2,3459.1,0.005]
[1762578616575,3.91505428,3459.2,3459.1,0.005]
[1762578617053,4.82735428,3459.2,3459.1,0.005]
[1762578617701,2.89167775,3458.2,3458.1,0.005]
[1762578618001,0.405504,3458.2,3458.1,0.005]
[1762578618150,3.29718175,3458.2,3458.1,0.005]
[1762578618799,3.29718175,3458.2,3458.1,0.6184]
[1762578619464,3.29718175,3458.2,3458.1,1.0907]
[1762578619669,0.405504,3458.2,3458.1,1.0907]
[1762578620753,2.89092538,3459.1,3458.1,1.0907]
[1762578621092,2.89116572,3458.9,3458.6,0.4684]
[1762578621250,0.36972339,3459.0,3458.6,0.4684]
[1762578621452,2.89100896,3459.0,3458.9,0.4684]
[1762578621647,3.29651296,3459.0,3458.1,0.15]
[1762578621886,0.405504,3458.9,3458.1,0.15]
[1762578622095,2.89144269,3458.5,3458.1,0.15]
[1762578622293,3.29677144,3458.7,3458.1,0.6223]
[1762578622452,2.89147239,3458.5,3458.1,0.6223]
[1762578622657,2.8915383,3458.4,3458.1,0.6223]
[1762578622858,0.405504,3458.9,3458.3,0.4684]
[1762578623073,3.29718175,3458.2,3458.1,0.005]
[1762578623257,3.62689993,3458.2,3458.1,0.005]
[1762578623469,3.62689993,3458.2,3458.1,0.4734]
[1762578624198,3.62689993,3458.2,3458.1,0.6184]
[1762578624498,3.29718175,3458.2,3458.1,0.6184]
[1762578624702,3.29718175,3458.2,3458.1,0.005]
[1762578625052,3.75038175,3458.2,3458.1,0.005]
[1762578625249,0.405504,3458.2,3458.1,0.4734]
[1762578625469,0.405504,3458.2,3458.1,0.6184]
[1762578625688,3.29718175,3458.2,3458.1,1.0907]
[1762578625893,0.405504,3458.2,3458.1,1.0907]
[1762578626092,3.29718175,3458.2,3458.1,1.0907]
[1762578626901,3.91605511,3458.2,3458.1,0.6184]
[1762578627287,3.29718175,3458.2,3458.1,0.6184]
[1762578628408,0.45361122,3458.6,3458.1,1.0907]
[1762578628576,0.405504,3458.5,3458.2,0.4723]
[1762578628978,0.45361122,3458.6,3458.4,0.4684]
[1762578629193,2.89042402,3459.7,3458.5,0.4684]
[1762578629408,2.89125853,3458.8,3458.5,0.4684]
[1762578629566,2.8912811,3458.7,3458.5,0.4684]
[1762578629768,2.8912811,3458.7,3458.4,0.4723]
[1762578630004,2.8912811,3458.7,3458.6,0.4684]
[1762578630397,2.89118818,3458.8,3458.6,0.4684]
[1762578630598,3.29642938,3459.1,3459.0,0.4684]
[1762578630969,3.91515514,3459.1,3459.0,0.4684]
[1762578631397,0.405504,3459.0,3458.1,0.15]
[1762578631707,2.89142541,3458.6,3458.3,0.4723]
[1762578631868,2.89144167,3458.5,3458.3,0.4723]
[1762578632305,2.89144167,3458.5,3458.4,0.4684]
[1762578632712,2.89144167,3458.5,3458.4,0.9661]
[1762578632911,2.89136755,3458.6,3458.4,0.9661]
[1762578633083,2.89136755,3458.6,3458.4,0.4977]
[1762578633285,0.405504,3458.9,3458.5,0.9492]
[1762578633471,0.405504,3458.9,3458.6,0.4977]
[1762578633671,3.29660448,3458.9,3458.8,0.4515]
[1762578633896,3.19835787,3459.6,3458.8,0.4515]
[1762578633897,0.002,3459.1,3458.8,0.4515]
[1762578634110,0.002,3459.1,3458.9,0.4977]
[1762578634311,0.002,3459.1,3459.0,0.4515]
[1762578634804,0.002,3459.1,3459.0,0.9492]
[1762578635398,2.89260185,3459.5,3459.0,0.9492]
[1762578635399,0.86871287,3461.3,3459.0,3.84655429]
[1762578635601,2.88973532,3460.6,3459.7,0.4515]
[1762578635786,2.88976438,3460.5,3459.7,0.4515]
[1762578635979,0.1981,3460.9,3459.7,0.9492]
[1762578636225,0.005,3460.9,3459.7,3.83962402]
[1762578636413,2.88968119,3460.6,3459.7,0.9492]
[1762578636720,3.29509621,3460.7,3459.7,3.83962402]
[1762578637019,0.4533792,3460.7,3459.7,4.52287515]
[1762578637583,3.34299506,3460.7,3459.7,4.52287515]
[1762578637782,0.405504,3460.6,3459.7,4.52287515]
[1762578638214,0.410504,3460.9,3459.7,4.52287515]
[1762578638417,0.405504,3460.6,3459.7,4.52287515]
[1762578638761,2.88967991,3460.6,3459.7,4.52287515]
[1762578639023,0.405504,3460.8,3459.7,4.52287515]
[1762578639183,2.88968087,3460.6,3459.7,4.52287515]
[1762578639521,3.29518392,3460.6,3459.7,4.52287515]
[1762578640085,0.405504,3460.6,3459.7,4.52287515]
[1762578640394,3.29502031,3460.8,3459.7,4.52287515]
[1762578640599,0.405504,3460.8,3459.7,4.55177939]
[1762578640795,0.005,3460.9,3460.2,2.88997216]
[1762578640996,0.005,3460.9,3459.8,0.4977]
[1762578640997,0.410504,3460.9,3459.8,0.4977]
[1762578641214,0.410504,3460.9,3460.8,0.4515]
[1762578641413,0.005,3460.9,3460.8,0.6392]
[1762578641712,0.005,3460.9,3460.8,1.1369]
[1762578642033,0.005,3460.9,3460.8,4.02640531]
[1762578645639,0.005,3460.9,3460.8,1.1369]
[1762578646056,0.005,3460.9,3460.5,0.1877]
[1762578646445,0.144,3460.7,3460.5,0.1877]
[1762578646662,0.144,3460.7,3460.5,0.6637]
[1762578646842,0.144,3460.7,3460.6,0.4914]
[1762578647044,0.144,3460.7,3460.6,3.85707231]
[1762578647239,0.144,3460.7,3460.6,4.2644393]
[1762578647450,0.144,3460.7,3460.6,1.37476699]
[1762578647630,0.144,3460.7,3460.6,4.2644393]
[1762578648142,0.144,3460.7,3460.6,1.37476699]
[1762578648468,0.144,3460.7,3460.6,0.4914]
[1762578648670,0.144,3460.7,3460.6,3.85707231]
[1762578648873,0.144,3460.7,3460.6,0.9674]
[1762578649969,0.144,3460.7,3460.6,3.85707231]
[1762578650148,0.144,3460.7,3460.6,0.9674]
[1762578650347,0.144,3460.7,3460.6,3.85707231]
[1762578650739,0.144,3460.7,3460.6,0.9674]
[1762578651571,0.144,3460.7,3460.2,0.1877]
[1762578651572,0.6426,3460.7,3460.2,0.1877]
[1762578651739,0.6426,3460.7,3460.2,3.0776457]
[1762578651944,0.144,3460.7,3460.2,3.0776457]
[1762578652284,0.144,3460.7,3460.3,2.88991507]
[1762578652571,0.144,3460.7,3460.3,2.88992283]
[1762578653261,0.146,3460.7,3460.3,2.88992283]
[1762578653663,0.146,3460.7,3460.2,3.55368565]
[1762578653875,0.002,3460.7,3460.3,2.88991446]
[1762578654042,0.144,3460.5,3460.3,3.36591489]
[1762578654440,0.144,3460.5,3460.4,0.4914]
[1762578655583,0.11512331,3460.5,3460.4,0.4914]
[1762578657941,0.11512331,3460.5,3460.4,3.38123932]
[1762578658138,0.11512331,3460.5,3460.4,0.4914]
[1762578660049,0.61372331,3460.5,3460.1,2.89003552]
[1762578660251,0.4986,3460.5,3460.1,2.89003552]
[1762578660449,0.002,3460.7,3460.6,2.88967231]
[1762578660760,0.005,3461.9,3460.8,2.88950531]
[1762578660960,0.005,3461.9,3461.0,3.38073834]
[1762578661327,0.005,3461.9,3461.0,3.85673834]
[1762578662492,0.68,3461.9,3461.0,0.4914]
[1762578662785,2.88886129,3461.6,3461.0,0.4682]
[1762578662970,2.88916779,3461.3,3460.5,0.4719]
[1762578663177,2.88899459,3461.5,3460.5,0.4719]
[1762578663178,0.405504,3461.4,3460.5,0.4719]
[1762578663361,0.405504,3461.4,3460.5,3.36164836]
[1762578663557,2.88910363,3461.3,3460.5,3.36164836]
[1762578663849,0.405504,3461.4,3461.0,0.4682]
[1762578664050,3.29451473,3461.4,3461.0,0.4682]
[1762578664283,0.405504,3461.4,3461.0,0.4682]
[1762578664451,3.29451401,3461.4,3461.0,0.4682]
[1762578664786,0.405504,3461.4,3461.0,0.4682]
[1762578664968,0.45317438,3461.6,3461.0,3.82943834]
[1762578665176,2.89364868,3461.9,3461.0,4.50133118]
[1762578665376,0.005,3461.9,3461.0,4.50133118]
[1762578665579,2.89360199,3461.9,3461.0,4.50133118]
[1762578665888,3.08770199,3461.9,3461.0,4.50133118]
[1762578666288,3.08770199,3461.9,3461.0,3.82943834]
[1762578666492,0.1991,3461.9,3461.0,3.82943834]
[1762578666693,3.08770282,3461.9,3461.0,3.82943834]
[1762578668014,2.88867835,3461.8,3461.0,3.82943834]
[1762578668213,0.005,3461.9,3461.0,3.85833172]
[1762578668710,0.1991,3461.9,3461.0,3.82943834]
[1762578668915,0.005,3461.9,3461.0,3.82943834]
[1762578669287,0.005,3461.9,3461.0,3.85833172]
[1762578669481,0.005,3461.9,3461.0,3.82943834]
[1762578669816,0.005,3461.9,3461.0,4.50133118]
[1762578670679,0.144,3461.8,3461.0,4.64533118]
[1762578671311,0.005,3461.9,3461.0,4.64533118]
[1762578671819,0.1991,3461.9,3461.0,1.14009284]
[1762578672114,0.1991,3461.9,3461.0,3.82943834]
[1762578672629,0.002,3461.5,3461.0,3.82943834]
[1762578673026,0.002,3461.5,3461.0,3.85833172]
[1762578673699,0.002,3461.5,3461.0,3.82943834]
[1762578676596,0.002,3461.5,3461.0,3.85833172]
[1762578677028,0.002,3461.5,3461.4,2.88900444]
[1762578677303,0.002,3461.5,3461.4,3.9350148]
[1762578677524,0.002,3461.5,3461.4,4.4069148]
[1762578680172,0.002,3461.5,3461.4,1.04601036]
[1762578680483,0.002,3461.5,3461.4,3.82910444]
[1762578680977,0.002,3461.5,3461.4,0.4682]
[1762578681187,0.002,3461.5,3461.4,3.35720444]
[1762578681848,0.002,3461.5,3461.4,3.50120444]
[1762578682631,0.002,3461.5,3461.4,3.03300444]
[1762578683277,0.4886,3461.5,3461.4,0.144]
[1762578683464,0.4886,3461.5,3460.9,0.001]
[1762578683465,1.1135,3461.5,3460.9,3.03435935]
[1762578683668,3.85844785,3461.5,3460.9,0.001]
[1762578683962,0.144,3461.1,3460.9,0.001]
[1762578685072,0.4866,3461.0,3460.9,0.001]
[1762578685589,0.9675,3461.0,3460.9,0.001]
[1762578686393,3.85683834,3461.0,3460.9,0.001]
[1762578691282,4.26234234,3461.0,3460.9,0.001]
[1762578691506,4.97749572,3461.0,3460.9,0.001]
[1762578691865,3.29517631,3460.6,3460.5,0.001]
[1762578692062,3.53697631,3460.6,3460.5,0.001]
[1762578692263,4.01787631,3460.6,3460.5,0.001]
[1762578692770,3.29542683,3460.3,3460.2,0.001]
[1762578692966,2.89069506,3459.4,3459.1,0.005]
[1762578693167,3.31774181,3459.2,3459.1,0.005]
[1762578693408,3.81034181,3459.2,3459.1,0.005]
[1762578693717,4.21584581,3459.2,3459.1,0.005]
[1762578696904,1.325004,3459.2,3459.1,0.005]
[1762578697209,4.21584581,3459.2,3459.1,0.005]
[1762578697413,2.0356568,3459.2,3459.1,0.005]
[1762578697715,0.4269,3459.2,3459.1,0.005]
[1762578698672,0.898104,3459.5,3459.1,0.005]
[1762578698878,0.405504,3459.5,3459.1,0.005]
[1762578699118,0.1944,3459.6,3459.1,2.99816352]
[1762578699321,0.144,3459.2,3459.1,0.005]
[1762578699813,0.6274,3459.2,3459.1,0.005]
[1762578700130,0.144,3459.2,3459.1,0.4686]
[1762578700324,0.6274,3459.2,3459.1,0.005]
[1762578700652,0.4834,3459.2,3459.1,0.005]
[1762578700822,2.89066384,3459.5,3459.1,0.005]
[1762578701149,0.4926,3459.5,3459.1,0.005]
[1762578701314,3.38319341,3459.5,3459.1,0.005]
[1762578701632,0.4834,3459.2,3459.1,0.005]
[1762578702012,0.4875,3459.4,3459.1,0.005]
[1762578702412,3.37818283,3459.4,3459.1,0.005]
[1762578702613,0.4742,3459.2,3459.1,0.005]
[1762578703951,0.4875,3459.4,3459.1,0.005]
[1762578704143,3.37817927,3459.4,3459.1,0.005]
[1762578705564,3.77054581,3459.2,3459.1,0.005]
[1762578705919,4.25804581,3459.2,3459.1,0.005]
[1762578706660,3.29676372,3458.7,3458.6,0.001]
[1762578706886,3.76856372,3458.7,3458.6,0.001]
[1762578707094,4.25606372,3458.7,3458.6,0.001]
[1762578707387,4.97078624,3458.7,3458.6,0.001]
[1762578709549,4.56528224,3458.7,3458.6,0.001]
[1762578710086,4.97078624,3458.7,3458.6,0.001]
[1762578715723,5.42444887,3458.7,3458.6,0.001]
[1762578717428,3.29801817,3457.2,3457.1,0.005]
[1762578717629,3.76741817,3457.2,3457.1,0.005]
[1762578717831,4.25491817,3457.2,3457.1,0.005]
[1762578717988,3.76741817,3457.2,3457.1,0.005]
[1762578718220,2.89219885,3457.6,3457.1,0.005]
[1762578718221,0.1852,3457.7,3457.1,0.4852]
[1762578718415,2.89239489,3457.4,3457.1,0.4852]
[1762578718612,2.89243337,3457.3,3457.1,0.4852]
[1762578718822,0.405504,3457.6,3457.1,0.4852]
[1762578719124,2.8923519,3457.4,3457.1,0.4352]
[1762578719290,2.89226319,3457.5,3457.1,0.4352]
[1762578719620,3.28931135,3457.5,3457.1,0.4352]
[1762578719821,0.39704672,3457.5,3457.1,0.4352]
[1762578720025,2.89226838,3457.5,3457.1,0.4352]
[1762578720527,2.8924305,3457.3,3457.2,0.1178]
[1762578720887,2.8924305,3457.3,3457.2,0.598]
[1762578721290,0.405504,3457.8,3457.2,0.4802]
[1762578721501,0.405504,3457.7,3457.2,0.4802]
[1762578721726,0.4875,3457.8,3457.2,0.4802]
[1762578721960,2.89235728,3457.4,3457.2,0.4802]
[1762578722131,2.89256753,3457.2,3456.6,0.4679]
[1762578722336,2.89251417,3457.2,3457.1,0.4802]
[1762578722536,2.89264483,3457.1,3456.3,0.1628]
[1762578722725,0.144,3456.8,3456.3,0.1628]
[1762578722920,0.144,3456.5,3456.3,0.1628]
[1762578723116,2.89323557,3456.4,3456.1,0.005]
[1762578723430,3.03735107,3456.2,3456.1,0.005]
[1762578723635,3.49915107,3456.2,3456.1,0.005]
[1762578723835,3.96865107,3456.2,3456.1,0.005]
[1762578724030,1.0753,3456.2,3456.1,0.005]
[1762578724236,0.6058,3456.2,3456.1,0.005]
[1762578724439,0.144,3456.2,3456.1,0.4942]
[1762578724618,0.144,3456.2,3456.1,1.1284]
[1762578724824,0.144,3456.2,3456.1,0.657]
[1762578726950,0.144,3456.2,3456.1,0.4942]
[1762578727572,0.144,3456.2,3456.1,0.4952]
[1762578727933,0.144,3456.2,3456.1,3.38863479]
[1762578728352,0.144,3456.2,3456.1,3.55143479]
[1762578728834,0.1838,3456.9,3456.1,4.02283479]
[1762578729033,0.144,3456.5,3456.1,0.658]
[1762578729257,0.405504,3456.7,3456.1,0.006]
[1762578729472,3.35515107,3456.2,3456.1,0.006]
[1762578729652,4.38548887,3456.2,3456.1,0.006]
[1762578729858,4.85498887,3456.2,3456.1,0.006]
[1762578730105,0.405504,3456.8,3456.1,1.1294]
[1762578730255,0.144,3456.2,3456.1,0.6402]
[1762578730461,0.1838,3456.9,3456.2,2.8933354]
[1762578730674,0.144,3456.4,3456.2,2.8933354]
[1762578730877,0.144,3456.4,3456.1,3.53360915]
[1762578731072,0.144,3456.4,3456.1,0.1688]
[1762578732307,0.144,3456.4,3456.3,0.4892]
[1762578732960,0.144,3456.4,3456.1,3.71934508]
[1762578733162,0.144,3456.4,3456.1,3.06220546]
[1762578733363,0.144,3456.4,3456.3,0.4892]
[1762578733601,2.8923232,3457.5,3456.3,0.51813267]
[1762578733801,2.89242194,3457.4,3456.8,0.4892]
[1762578734001,2.89211086,3457.7,3456.8,0.4892]
[1762578734180,0.144,3456.9,3456.8,0.4892]
[1762578734709,0.144,3457.2,3457.0,2.89266341]
[1762578735009,0.144,3457.4,3456.8,1.1046]
[1762578735180,0.144,3457.4,3457.3,0.607]
[1762578736813,0.144,3457.4,3457.3,1.0784]
[1762578738214,0.45365964,3458.3,3457.5,2.89225761]
[1762578738418,0.45365964,3458.3,3457.3,1.76475627]
[1762578738419,0.144,3457.9,3457.8,0.4892]
[1762578738654,2.89214148,3457.7,3457.3,0.2618]
[1762578738959,7.05834367,3457.6,3457.0,0.2618]
[1762578739140,2.89228747,3457.5,3457.0,0.2618]
[1762578739350,4.1661434,3457.6,3457.0,0.2618]
[1762578739351,4.0221434,3457.6,3457.0,0.1178]
[1762578739657,0.144,3457.4,3457.0,0.1178]
[1762578739814,2.89245415,3457.3,3457.0,0.1178]
[1762578740019,2.89235517,3457.4,3457.0,0.1178]
[1762578740565,0.70978779,3457.6,3457.3,0.4892]
[1762578740724,0.144,3457.4,3457.0,0.1178]
[1762578741673,0.144,3457.4,3457.3,0.4892]
[1762578744826,0.144,3457.4,3457.3,0.9606]
[1762578745027,0.6058,3457.4,3457.0,0.1178]
[1762578745342,3.36195249,3457.3,3456.8,0.144]
[1762578745529,2.89263166,3457.1,3456.8,0.144]
[1762578745727,2.8926775,3457.1,3456.4,3.36458049]
[1762578746057,3.03663,3457.1,3456.5,3.0370895]
[1762578746435,3.03663,3457.1,3456.5,0.144]
[1762578746640,2.89269433,3457.0,3456.5,0.144]
[1762578747028,2.89269433,3457.0,3456.5,0.6154]
[1762578747226,0.144,3457.1,3456.9,0.4892]
[1762578747427,0.144,3457.1,3457.0,0.4892]
[1762578747867,0.144,3457.5,3457.0,0.9616]
[1762578748165,0.144,3457.5,3457.0,0.4902]
[1762578748355,2.89236117,3457.4,3457.0,0.4902]
[1762578748753,0.144,3457.5,3457.3,0.4892]
[1762578748966,3.03626319,3457.5,3457.4,0.4892]
[1762578749170,2.89236969,3457.4,3457.1,0.1178]
[1762578749334,0.63923503,3457.4,3457.1,0.1178]
[1762578749536,2.89249086,3457.3,3457.1,0.1178]
[1762578749743,0.144,3457.1,3457.0,0.001]
[1762578750131,3.49839784,3457.1,3457.0,0.001]
[1762578750973,3.03659784,3457.1,3457.0,0.001]
[1762578751263,0.6058,3457.1,3457.0,0.001]
[1762578751626,0.144,3457.1,3457.0,0.001]
[1762578752041,0.6058,3457.1,3457.0,0.001]
[1762578753046,0.144,3457.1,3457.0,0.4556]
[1762578753566,0.144,3457.1,3457.0,0.9191]
[1762578753751,0.144,3457.1,3457.0,0.4556]
[1762578755985,0.144,3457.1,3457.0,0.9191]
[1762578756393,0.002,3457.6,3457.0,1.31468971]
[1762578756549,0.002,3457.6,3457.0,0.4556]
[1762578756744,2.89422518,3457.6,3457.1,0.1178]
[1762578756949,0.002,3457.6,3457.5,0.4546]
[1762578757176,2.89417954,3457.6,3457.5,0.4546]
[1762578757787,2.89417954,3457.6,3457.1,0.1178]
[1762578758087,2.89417954,3457.6,3457.1,0.5813]
[1762578758286,0.002,3457.6,3457.1,0.5813]
[1762578758585,2.89418341,3457.6,3457.1,0.5813]
[1762578759148,2.8922646,3457.5,3457.1,0.1178]
[1762578759376,2.8922646,3457.5,3457.0,0.001]
[1762578759615,3.96860384,3457.5,3457.0,0.001]
[1762578760120,3.96865875,3457.5,3457.0,0.001]
[1762578760413,0.002,3457.6,3457.0,2.8936667]
[1762578760618,2.89420353,3457.6,3457.0,2.8936667]
[1762578760921,0.002,3457.6,3457.0,2.89360174]
[1762578761212,2.89418748,3457.6,3457.0,0.001]
[1762578761710,2.89418748,3457.6,3457.0,2.89367754]
[1762578761910,2.89418748,3457.6,3457.1,0.1178]
[1762578762781,2.89227488,3457.5,3457.1,0.1178]
[1762578762983,0.4534,3457.6,3457.1,0.1178]
[1762578763183,2.89228441,3457.5,3457.1,0.1178]
[1762578763489,0.4534,3457.6,3457.1,0.1178]
[1762578763490,2.89418028,3457.6,3457.1,0.1178]
[1762578763695,0.002,3457.6,3457.1,3.46429401]
[1762578764020,0.002,3457.6,3457.1,3.01039401]
[1762578764707,0.002,3457.6,3457.5,0.4734]
[1762578765184,0.002,3457.6,3457.1,0.75360537]
[1762578765185,0.002,3457.6,3457.1,3.01038526]
[1762578765377,0.002,3457.6,3457.1,3.46428526]
[1762578765721,0.002,3457.6,3457.1,3.01038526]
[1762578766422,0.5974,3457.6,3457.1,3.01038526]
[1762578766917,3.48959709,3457.6,3457.1,0.1178]
[1762578767124,0.5974,3457.6,3457.1,3.01038896]
[1762578767298,0.5974,3457.6,3457.1,3.01036834]
[1762578767496,0.146,3457.6,3457.1,3.01036834]
[1762578767682,0.146,3457.6,3457.1,3.01036364]
[1762578768321,3.40560059,3457.6,3457.0,0.145]
[1762578768485,3.85700059,3457.6,3457.0,0.145]
[1762578768685,2.89226931,3457.5,3457.0,0.145]
[1762578768917,3.85701123,3457.6,3457.0,3.03768121]
[1762578769121,3.03819037,3457.6,3457.0,3.03768121]
[1762578769330,0.146,3457.6,3457.1,0.1178]
[1762578769826,0.146,3457.6,3457.1,3.0103913]
[1762578770028,0.146,3457.6,3457.1,0.1178]
[1762578770210,0.4534,3457.6,3457.0,0.001]
[1762578770536,3.34559758,3457.6,3457.0,0.001]
[1762578770726,2.89235309,3457.4,3457.0,0.001]
[1762578771732,2.89245343,3457.3,3457.0,0.001]
[1762578771890,3.34669784,3457.1,3457.0,0.001]
[1762578772286,3.79809784,3457.1,3457.0,0.001]
[1762578773130,3.34669784,3457.1,3457.0,0.001]
[1762578773333,3.97061297,3457.1,3457.0,0.001]
[1762578776034,4.42201297,3457.1,3457.0,0.001]
[1762578780639,4.82751697,3457.1,3457.0,0.001]
[1762578782477,9.1052088,3457.1,3457.0,0.001]
[1762578785369,0.876004,3457.0,3455.5,3.34152467]
[1762578785584,0.876004,3457.0,3455.5,1.0711698]
[1762578785585,0.91243088,3456.9,3455.5,1.0711698]
[1762578785866,2.89317326,3456.5,3455.8,2.89361721]
[1762578786069,2.89315796,3456.5,3455.8,2.89361721]
[1762578786572,2.89315796,3456.5,3455.9,2.89359479]
[1762578786975,0.6675,3456.9,3456.4,0.484]
[1762578787176,0.6675,3456.9,3455.6,2.89382381]
[1762578787177,2.89309995,3456.5,3455.6,2.89382381]
[1762578787378,2.89305902,3456.6,3456.3,0.001]
[1762578787682,0.4705,3456.8,3456.4,0.484]
[1762578787880,0.4705,3456.8,3456.3,0.001]
[1762578788048,2.89311381,3456.5,3456.3,0.001]
[1762578788445,0.4705,3456.8,3456.3,0.001]
[1762578788647,2.89272908,3457.0,3456.7,0.484]
[1762578788986,2.89276519,3456.9,3456.8,0.484]
[1762578789558,2.89269596,3457.0,3456.8,0.484]
[1762578789783,2.89242438,3457.4,3456.8,0.484]
[1762578789988,3.21535723,3457.3,3456.9,0.484]
[1762578790153,3.21532891,3457.3,3457.2,0.484]
[1762578790380,2.8924305,3457.3,3457.2,0.484]
[1762578790685,2.89252426,3457.2,3456.9,0.484]
[1762578791059,2.89252426,3457.2,3457.1,0.484]
[1762578791804,3.03652426,3457.2,3457.1,0.484]
[1762578792102,0.144,3457.2,3457.1,0.484]
[1762578792599,0.144,3457.2,3457.1,0.6018]
[1762578792804,0.144,3457.2,3457.1,1.0858]
[1762578793299,0.144,3457.2,3457.1,0.6018]
[1762578795311,3.03637052,3457.4,3457.1,0.6018]
[1762578795983,0.144,3457.4,3457.3,0.484]
[1762578796183,0.144,3457.4,3457.1,0.1178]
[1762578796184,3.03634685,3457.4,3457.1,0.1178]
[1762578796358,2.89261731,3457.1,3456.7,0.144]
[1762578796564,0.4561,3457.2,3456.7,0.144]
[1762578796799,3.03681177,3456.9,3456.3,3.5222569]
[1762578797233,0.144,3456.9,3456.4,0.484]
[1762578797402,4.20028466,3456.9,3456.3,0.001]
[1762578797587,4.27769183,3457.3,3456.3,0.001]
[1762578797588,0.144,3456.6,3456.3,0.001]
[1762578798130,3.34928365,3456.4,3456.3,0.001]
[1762578798598,3.81978365,3456.4,3456.3,0.001]
[1762578799819,4.22528765,3456.4,3456.3,0.001]
[1762578799998,4.93711862,3456.4,3456.3,0.001]
[1762578801404,4.46661862,3456.4,3456.3,0.001]
[1762578801939,4.93711862,3456.4,3456.3,0.001]
[1762578804233,4.53161462,3456.4,3456.3,0.001]
[1762578804662,4.93711862,3456.4,3456.3,0.001]
[1762578805017,4.93911862,3456.4,3456.3,0.001]
[1762578813870,4.93391862,3456.4,3456.3,0.001]
[1762578814388,8.96069019,3456.4,3456.3,0.001]
[1762578814583,1.16993097,3456.4,3456.3,0.001]
[1762578814880,3.83488365,3456.4,3456.3,0.001]
[1762578815082,7.86165522,3456.4,3456.3,0.001]
[1762578816272,8.26715922,3456.4,3456.3,0.001]
[1762578816480,6.92195522,3456.4,3456.3,0.001]
[1762578817296,7.39635522,3456.4,3456.3,0.001]
[1762578818797,8.4718298,3456.4,3456.3,0.001]
[1762578821603,8.9371298,3456.4,3456.3,0.001]
[1762578821767,8.4718298,3456.4,3456.3,0.001]
[1762578822400,7.9974298,3456.4,3456.3,0.001]
[1762578824000,3.97065823,3456.4,3456.3,0.001]
[1762578824302,0.002,3456.4,3456.3,0.9445]
[1762578824500,2.89518365,3456.4,3456.3,0.9445]
[1762578824708,2.89518365,3456.4,3456.3,0.478]
[1762578825411,2.89518365,3456.4,3456.3,0.001]
[1762578825599,3.38798365,3456.4,3456.3,0.001]
[1762578825772,4.10498578,3456.4,3456.3,0.001]
[1762578827222,3.61218578,3456.4,3456.3,0.001]
[1762578828022,3.61218578,3456.4,3456.3,0.9445]
[1762578828023,0.002,3456.4,3456.3,0.9445]
[1762578828236,2.89518365,3456.4,3456.3,0.478]
[1762578828445,0.002,3456.4,3456.3,0.478]
[1762578828590,2.89518365,3456.4,3456.3,0.478]
[1762578829833,3.38798365,3456.4,3456.3,0.001]
[1762578830137,4.01608865,3456.4,3456.3,0.001]
[1762578830434,8.93186422,3456.4,3456.3,0.001]
[1762578832733,8.44836422,3456.4,3456.3,0.001]
[1762578833193,3.52328865,3456.4,3456.3,0.001]
[1762578834656,8.44836422,3456.4,3456.3,0.001]
[1762578834956,9.39836422,3456.4,3456.3,0.001]
[1762578837656,14.08202542,3456.4,3456.3,0.001]
[1762578837858,9.39836422,3456.4,3456.3,0.001]
[1762578840370,12.44836422,3456.4,3456.3,0.001]
[1762578840664,9.39836422,3456.4,3456.3,0.001]
[1762578841165,8.99286022,3456.4,3456.3,0.001]
[1762578841669,9.39836422,3456.4,3456.3,0.001]
[1762578841871,8.50936022,3456.4,3456.3,0.001]
[1762578842093,7.38845522,3456.4,3456.3,0.478]
[1762578842279,2.89518365,3456.4,3456.3,0.9373]
[1762578842861,0.002,3456.4,3456.3,0.9373]
[1762578843185,0.146,3456.4,3456.3,0.9373]
[1762578843747,0.002,3456.4,3456.3,0.9373]
[1762578851825,2.89518365,3456.4,3456.3,0.9373]
[1762578852540,0.002,3456.4,3456.3,0.9373]
[1762578853367,2.89518365,3456.4,3456.3,0.001]
[1762578853535,8.85616394,3456.4,3456.3,0.001]
[1762578855933,0.05,3452.3,3448.7,9.54223519]
[1762578856131,1.51328338,3447.8,3447.1,10.4099204]
[1762578856335,9.88362613,3448.7,3447.1,8.90293886]
[1762578856523,0.61906793,3448.6,3445.2,4.86196012]
[1762578856725,2.58154346,3446.3,3445.3,0.02902504]
[1762578856908,1.71215716,3445.7,3445.6,2.90225214]
[1762578857142,5.17056062,3447.1,3446.5,0.0675]